[Event "*** Titled Tuesday Blitz"]
[Site "Chess.com"]
[Date "2020.11.24"]
[Round "7"]
[White "suyu28"]
[Black "GM_LOADING"]
[Result "1-0"]
[WhiteElo "2629"]
[BlackElo "2486"]
[TimeControl "180+1"]
[EndTime "11:34:34 PST"]
[Termination "suyu28 won on time"]

1. e4 {[%clk 0:03:00.9]} 1... e5 {[%clk 0:02:59.6]} 2. Nf3 {[%clk 0:03:00.3]}
2... Nc6 {[%clk 0:03:00]} 3. Bc4 {[%clk 0:02:59.8]} 3... Nf6 {[%clk 0:02:59.6]}
4. d3 {[%clk 0:02:59.9]} 4... h6 {[%clk 0:02:59.1]} 5. O-O {[%clk 0:02:59.3]}
5... d6 {[%clk 0:02:54.6]} 6. c3 {[%clk 0:02:59.3]} 6... g6 {[%clk 0:02:53.6]}
7. Re1 {[%clk 0:02:58.4]} 7... Bg7 {[%clk 0:02:53.6]} 8. a4 {[%clk 0:02:58.1]}
8... O-O {[%clk 0:02:52]} 9. a5 {[%clk 0:02:58.4]} 9... a6 {[%clk 0:02:51.7]}
10. Qb3 {[%clk 0:02:55.2]} 10... Qe7 {[%clk 0:02:43.3]} 11. Nbd2 {[%clk
0:02:54.7]} 11... Kh8 {[%clk 0:02:26.4]} 12. Nf1 {[%clk 0:02:54.7]} 12... Nh7
{[%clk 0:02:24.6]} 13. Ne3 {[%clk 0:02:51.8]} 13... Rb8 {[%clk 0:02:16.2]} 14.
Nd5 {[%clk 0:02:49.8]} 14... Qd8 {[%clk 0:02:11.8]} 15. Qc2 {[%clk 0:02:45.5]}
15... Bg4 {[%clk 0:02:02.9]} 16. Nd2 {[%clk 0:02:43.5]} 16... Be6 {[%clk
0:02:03.2]} 17. b4 {[%clk 0:02:40]} 17... Ne7 {[%clk 0:01:46.7]} 18. Bb2 {[%clk
0:02:38.2]} 18... Nxd5 {[%clk 0:01:38.2]} 19. Bxd5 {[%clk 0:02:27.8]} 19... Bxd5
{[%clk 0:01:36.9]} 20. exd5 {[%clk 0:02:28.7]} 20... Nf6 {[%clk 0:00:46.4]} 21.
c4 {[%clk 0:02:28.1]} 21... Nh5 {[%clk 0:00:42.5]} 22. g3 {[%clk 0:02:10.7]}
22... f5 {[%clk 0:00:34.3]} 23. Re2 {[%clk 0:02:03]} 23... Qg5 {[%clk
0:00:24.8]} 24. Qd1 {[%clk 0:01:44.7]} 24... Nf4 {[%clk 0:00:22.9]} 25. Re3
{[%clk 0:01:44.1]} 25... Nh3+ {[%clk 0:00:22.4]} 26. Kg2 {[%clk 0:01:37.3]}
26... Nf4+ {[%clk 0:00:10.3]} 27. Kh1 {[%clk 0:01:24.5]} 27... Nh5 {[%clk
0:00:10.2]} 28. Qe2 {[%clk 0:01:07.7]} 28... f4 {[%clk 0:00:07.5]} 29. Re4
{[%clk 0:01:01.9]} 29... fxg3 {[%clk 0:00:07]} 30. hxg3 {[%clk 0:00:57.9]} 30...
Rf7 {[%clk 0:00:07.1]} 31. Rh4 {[%clk 0:00:48.5]} 31... Rbf8 {[%clk 0:00:04.7]}
32. Ne4 {[%clk 0:00:48.6]} 32... Qf5 {[%clk 0:00:02.6]} 33. g4 {[%clk
0:00:31.2]} 1-0

[Event "*** Titled Tuesday Blitz"]
[Site "Chess.com"]
[Date "2020.11.24"]
[Round "7"]
[White "SantoBlue"]
[Black "grzechu96"]
[Result "1-0"]
[WhiteElo "2896"]
[BlackElo "2689"]
[TimeControl "180+1"]
[EndTime "11:34:35 PST"]
[Termination "SantoBlue won on time"]

1. Nf3 {[%clk 0:03:00.9]} 1... Nf6 {[%clk 0:02:57.3]} 2. b3 {[%clk 0:03:01.6]}
2... d5 {[%clk 0:02:51.9]} 3. Bb2 {[%clk 0:03:02.2]} 3... Bf5 {[%clk 0:02:52.1]}
4. e3 {[%clk 0:03:03.1]} 4... e6 {[%clk 0:02:51.8]} 5. Be2 {[%clk 0:03:03.7]}
5... h6 {[%clk 0:02:51.6]} 6. O-O {[%clk 0:03:03.9]} 6... Bd6 {[%clk 0:02:50.2]}
7. d3 {[%clk 0:03:04.8]} 7... O-O {[%clk 0:02:50]} 8. Nbd2 {[%clk 0:03:05.7]}
8... Bh7 {[%clk 0:02:50]} 9. Ne5 {[%clk 0:03:04.8]} 9... Nbd7 {[%clk 0:02:49.6]}
10. f4 {[%clk 0:03:04.8]} 10... c5 {[%clk 0:02:44.5]} 11. Ndf3 {[%clk
0:03:03.5]} 11... Qc7 {[%clk 0:02:44.7]} 12. Qe1 {[%clk 0:02:58.8]} 12... d4
{[%clk 0:02:16.4]} 13. Nc4 {[%clk 0:02:45.1]} 13... dxe3 {[%clk 0:01:43.2]} 14.
Nxd6 {[%clk 0:02:40.1]} 14... Qxd6 {[%clk 0:01:44.1]} 15. Ne5 {[%clk 0:02:38.5]}
15... Nd5 {[%clk 0:01:09]} 16. Qg3 {[%clk 0:02:37]} 16... f6 {[%clk 0:01:09.3]}
17. Nc4 {[%clk 0:02:36.2]} 17... Qc7 {[%clk 0:01:02.2]} 18. Rae1 {[%clk
0:02:36]} 18... b5 {[%clk 0:01:00.6]} 19. Nxe3 {[%clk 0:02:35.4]} 19... N7b6
{[%clk 0:00:58.7]} 20. Bg4 {[%clk 0:02:33.9]} 20... Rae8 {[%clk 0:00:55.6]} 21.
Nxd5 {[%clk 0:02:34.1]} 21... exd5 {[%clk 0:00:55.6]} 22. Rxe8 {[%clk
0:02:30.6]} 22... Rxe8 {[%clk 0:00:55.6]} 23. Bh5 {[%clk 0:02:22.9]} 23... Re6
{[%clk 0:00:39.5]} 24. Re1 {[%clk 0:02:14.5]} 24... Qe7 {[%clk 0:00:36.7]} 25.
Rxe6 {[%clk 0:02:10.7]} 25... Qxe6 {[%clk 0:00:37.6]} 26. f5 {[%clk 0:02:11.6]}
26... Bxf5 {[%clk 0:00:37.3]} 27. h3 {[%clk 0:02:08]} 27... Kh7 {[%clk
0:00:30.9]} 28. Kh2 {[%clk 0:02:01.3]} 28... Nc8 {[%clk 0:00:27.6]} 29. Qc7
{[%clk 0:02:00.9]} 29... Qd6+ {[%clk 0:00:27.8]} 30. Qxd6 {[%clk 0:02:01]} 30...
Nxd6 {[%clk 0:00:28.7]} 31. Ba3 {[%clk 0:02:01.1]} 31... b4 {[%clk 0:00:28]} 32.
Bc1 {[%clk 0:02:01.8]} 32... Nb5 {[%clk 0:00:27.1]} 33. Bf3 {[%clk 0:02:02.5]}
33... Be6 {[%clk 0:00:25.3]} 34. Bf4 {[%clk 0:01:59.3]} 34... Kg6 {[%clk
0:00:16.9]} 35. Bb8 {[%clk 0:01:59.1]} 35... Kf7 {[%clk 0:00:16.7]} 36. Bh5+
{[%clk 0:01:58.7]} 36... Ke7 {[%clk 0:00:16.7]} 37. Bf3 {[%clk 0:01:59.5]} 37...
Kd7 {[%clk 0:00:16.9]} 38. h4 {[%clk 0:02:00.2]} 38... Kc6 {[%clk 0:00:16.4]}
39. h5 {[%clk 0:01:55.7]} 39... a5 {[%clk 0:00:16.6]} 40. Kg3 {[%clk 0:01:53.9]}
40... Nc3 {[%clk 0:00:16.9]} 41. Kf4 {[%clk 0:01:50.6]} 41... Nxa2 {[%clk
0:00:15.2]} 42. Bg4 {[%clk 0:01:50.8]} 42... Bf7 {[%clk 0:00:09.2]} 43. d4
{[%clk 0:01:44.6]} 43... c4 {[%clk 0:00:05.5]} 44. Ba7 {[%clk 0:01:35.2]} 44...
cxb3 {[%clk 0:00:04.2]} 45. cxb3 {[%clk 0:01:34.8]} 45... a4 {[%clk 0:00:01.9]}
46. bxa4 {[%clk 0:01:28.5]} 46... b3 {[%clk 0:00:02.4]} 47. Bc5 {[%clk
0:01:27.5]} 47... b2 {[%clk 0:00:02.5]} 48. Bf5 {[%clk 0:01:28]} 48... Nc3
{[%clk 0:00:02.5]} 49. Ba3 {[%clk 0:01:22.6]} 49... b1=Q {[%clk 0:00:02.1]} 50.
Bxb1 {[%clk 0:01:23]} 50... Nxb1 {[%clk 0:00:03]} 51. Bf8 {[%clk 0:01:23.9]}
51... Bxh5 {[%clk 0:00:01.3]} 52. g4 {[%clk 0:01:22.5]} 1-0

[Event "*** Titled Tuesday Blitz"]
[Site "Chess.com"]
[Date "2020.11.24"]
[Round "7"]
[White "Das_Virus_2020"]
[Black "Legendinunknown"]
[Result "0-1"]
[WhiteElo "2499"]
[BlackElo "2669"]
[TimeControl "180+1"]
[EndTime "11:34:35 PST"]
[Termination "Legendinunknown won on time"]

1. e4 {[%clk 0:02:59.6]} 1... c6 {[%clk 0:02:59.9]} 2. d4 {[%clk 0:02:58.7]}
2... d5 {[%clk 0:02:59.9]} 3. Nc3 {[%clk 0:02:58.9]} 3... dxe4 {[%clk
0:02:59.4]} 4. Nxe4 {[%clk 0:02:59]} 4... Bf5 {[%clk 0:03:00]} 5. Nc5 {[%clk
0:02:58.5]} 5... e5 {[%clk 0:02:58.4]} 6. Nxb7 {[%clk 0:02:55.5]} 6... Qb6
{[%clk 0:02:56.6]} 7. Nc5 {[%clk 0:02:55]} 7... exd4 {[%clk 0:02:56.1]} 8. Nb3
{[%clk 0:02:53.5]} 8... c5 {[%clk 0:02:55.6]} 9. Bd3 {[%clk 0:02:53.3]} 9...
Bxd3 {[%clk 0:02:45.6]} 10. cxd3 {[%clk 0:02:54.2]} 10... Nf6 {[%clk 0:02:44.5]}
11. Nf3 {[%clk 0:02:53.3]} 11... Bd6 {[%clk 0:02:43.7]} 12. Qe2+ {[%clk
0:02:45.4]} 12... Kd8 {[%clk 0:02:35.9]} 13. O-O {[%clk 0:02:44.2]} 13... Re8
{[%clk 0:02:33.4]} 14. Qd1 {[%clk 0:02:41.1]} 14... Nbd7 {[%clk 0:02:32.5]} 15.
Nbd2 {[%clk 0:02:35.5]} 15... Qc6 {[%clk 0:02:29]} 16. Nc4 {[%clk 0:02:34.8]}
16... Nb6 {[%clk 0:02:28.3]} 17. Nxd6 {[%clk 0:02:20.8]} 17... Qxd6 {[%clk
0:02:26.7]} 18. Bg5 {[%clk 0:02:16.6]} 18... Kd7 {[%clk 0:02:26]} 19. Rc1 {[%clk
0:02:08.7]} 19... Nfd5 {[%clk 0:02:24]} 20. Nd2 {[%clk 0:01:55.5]} 20... f5
{[%clk 0:02:20]} 21. Nc4 {[%clk 0:01:45.2]} 21... Qg6 {[%clk 0:02:13]} 22. Bd2
{[%clk 0:01:32.1]} 22... Ke7 {[%clk 0:02:00.5]} 23. Ne5 {[%clk 0:01:16.7]} 23...
Qd6 {[%clk 0:01:58.2]} 24. Re1 {[%clk 0:00:29.6]} 24... Kf8 {[%clk 0:01:56.6]}
25. Nc4 {[%clk 0:00:27.7]} 25... Nxc4 {[%clk 0:01:48.9]} 26. dxc4 {[%clk
0:00:23.7]} 26... Rxe1+ {[%clk 0:01:46.9]} 27. Qxe1 {[%clk 0:00:20.6]} 27... Re8
{[%clk 0:01:44.4]} 28. Qd1 {[%clk 0:00:20]} 28... Nf6 {[%clk 0:01:43.8]} 29. Qf3
{[%clk 0:00:19]} 29... g6 {[%clk 0:01:43.2]} 30. Bh6+ {[%clk 0:00:17.3]} 30...
Kg8 {[%clk 0:01:42]} 31. h3 {[%clk 0:00:17.6]} 31... Ne4 {[%clk 0:01:36.2]} 32.
Rd1 {[%clk 0:00:15.2]} 32... g5 {[%clk 0:01:19]} 33. Qh5 {[%clk 0:00:11.1]}
33... Qg6 {[%clk 0:01:18.3]} 34. Qxg6+ {[%clk 0:00:10.7]} 34... hxg6 {[%clk
0:01:19.2]} 35. h4 {[%clk 0:00:11.4]} 35... gxh4 {[%clk 0:01:18]} 36. Bc1 {[%clk
0:00:09.8]} 36... Nd6 {[%clk 0:01:17]} 37. b4 {[%clk 0:00:07.4]} 37... Nxc4
{[%clk 0:01:13]} 38. bxc5 {[%clk 0:00:07]} 38... Kf7 {[%clk 0:01:11.3]} 39. Kh2
{[%clk 0:00:05.5]} 39... Rd8 {[%clk 0:01:05.6]} 40. Bf4 {[%clk 0:00:04.1]} 40...
Ke6 {[%clk 0:01:04.5]} 41. c6 {[%clk 0:00:04.1]} 41... Kd5 {[%clk 0:01:03.3]}
42. c7 {[%clk 0:00:03.8]} 42... Rc8 {[%clk 0:01:03.8]} 43. Kh3 {[%clk
0:00:03.5]} 43... Ne5 {[%clk 0:00:56.9]} 0-1

[Event "*** Titled Tuesday Blitz"]
[Site "Chess.com"]
[Date "2020.11.24"]
[Round "7"]
[White "frederiksvane"]
[Black "FontVella8"]
[Result "1-0"]
[WhiteElo "2729"]
[BlackElo "2545"]
[TimeControl "180+1"]
[EndTime "11:34:36 PST"]
[Termination "frederiksvane won by checkmate"]

1. e4 {[%clk 0:03:00]} 1... c6 {[%clk 0:02:59.6]} 2. Nf3 {[%clk 0:02:58.5]} 2...
d5 {[%clk 0:03:00]} 3. Nc3 {[%clk 0:02:59.2]} 3... dxe4 {[%clk 0:02:59.7]} 4.
Nxe4 {[%clk 0:03:00.1]} 4... Nf6 {[%clk 0:03:00.4]} 5. Qe2 {[%clk 0:03:00.1]}
5... Nxe4 {[%clk 0:02:58.9]} 6. Qxe4 {[%clk 0:02:59.2]} 6... Nd7 {[%clk
0:02:59.5]} 7. Bc4 {[%clk 0:02:59]} 7... e6 {[%clk 0:02:59.3]} 8. d4 {[%clk
0:02:52.7]} 8... Nf6 {[%clk 0:02:59.3]} 9. Qe2 {[%clk 0:02:52.4]} 9... Be7
{[%clk 0:02:56.5]} 10. O-O {[%clk 0:02:52.2]} 10... O-O {[%clk 0:02:56.6]} 11.
c3 {[%clk 0:02:47.3]} 11... b6 {[%clk 0:02:43.9]} 12. Bf4 {[%clk 0:02:06.4]}
12... Nd5 {[%clk 0:02:39.3]} 13. Bg3 {[%clk 0:02:06.1]} 13... Bb7 {[%clk
0:02:30.2]} 14. Rad1 {[%clk 0:02:05.3]} 14... Bf6 {[%clk 0:02:15.3]} 15. Bb3
{[%clk 0:01:54.2]} 15... Re8 {[%clk 0:02:02.4]} 16. Rfe1 {[%clk 0:01:52.4]}
16... Rc8 {[%clk 0:01:54.8]} 17. Ne5 {[%clk 0:01:45.6]} 17... Qe7 {[%clk
0:01:42.1]} 18. Qh5 {[%clk 0:01:16.7]} 18... g6 {[%clk 0:01:35]} 19. Qe2 {[%clk
0:01:05.2]} 19... c5 {[%clk 0:01:35]} 20. c4 {[%clk 0:01:04.7]} 20... Nb4 {[%clk
0:01:28.2]} 21. d5 {[%clk 0:00:56.8]} 21... exd5 {[%clk 0:01:12.9]} 22. cxd5
{[%clk 0:00:52]} 22... Rcd8 {[%clk 0:00:47.4]} 23. d6 {[%clk 0:00:45]} 23... Qf8
{[%clk 0:00:07.7]} 24. Qc4 {[%clk 0:00:15.5]} 24... Bxe5 {[%clk 0:00:07.2]} 25.
Bxe5 {[%clk 0:00:16.4]} 25... Nc6 {[%clk 0:00:06.6]} 26. Bf6 {[%clk 0:00:15.4]}
26... Rxe1+ {[%clk 0:00:02.8]} 27. Rxe1 {[%clk 0:00:16.3]} 27... Rxd6 {[%clk
0:00:03.2]} 28. Qxf7+ {[%clk 0:00:14.9]} 28... Qxf7 {[%clk 0:00:01.8]} 29. Re8#
{[%clk 0:00:14.4]} 1-0

[Event "*** Titled Tuesday Blitz"]
[Site "Chess.com"]
[Date "2020.11.24"]
[Round "7"]
[White "Grieve72"]
[Black "TC2304"]
[Result "1-0"]
[WhiteElo "2416"]
[BlackElo "2332"]
[TimeControl "180+1"]
[EndTime "11:34:36 PST"]
[Termination "Grieve72 won by resignation"]

1. d4 {[%clk 0:02:59.3]} 1... Nf6 {[%clk 0:02:59.5]} 2. Bg5 {[%clk 0:02:58.1]}
2... Ne4 {[%clk 0:02:49.7]} 3. Bf4 {[%clk 0:02:57.6]} 3... c5 {[%clk 0:02:35.1]}
4. f3 {[%clk 0:02:57]} 4... Nf6 {[%clk 0:02:34.7]} 5. dxc5 {[%clk 0:02:56.7]}
5... b6 {[%clk 0:02:35.3]} 6. e4 {[%clk 0:02:55.3]} 6... bxc5 {[%clk 0:02:24.9]}
7. Nc3 {[%clk 0:02:55.6]} 7... d6 {[%clk 0:02:15.5]} 8. e5 {[%clk 0:02:52.3]}
8... Nh5 {[%clk 0:02:11.2]} 9. Qd5 {[%clk 0:02:34.4]} 9... Nxf4 {[%clk 0:01:43]}
10. Qxa8 {[%clk 0:02:34.6]} 10... Nd7 {[%clk 0:01:38.1]} 11. Nb5 {[%clk
0:01:24.7]} 11... Nxe5 {[%clk 0:00:55.3]} 12. Nxa7 {[%clk 0:01:15.4]} 12... Bd7
{[%clk 0:00:50.8]} 13. Qb7 {[%clk 0:01:04]} 13... g5 {[%clk 0:00:31.6]} 14. Nb5
{[%clk 0:00:47.1]} 14... Bg7 {[%clk 0:00:24.7]} 15. Nc7+ {[%clk 0:00:44.7]}
15... Kf8 {[%clk 0:00:25.1]} 16. a4 {[%clk 0:00:32.9]} 16... g4 {[%clk
0:00:21.8]} 17. a5 {[%clk 0:00:31.6]} 17... Bc6 {[%clk 0:00:15.3]} 18. Qb6
{[%clk 0:00:30.4]} 18... gxf3 {[%clk 0:00:14.2]} 19. Nxf3 {[%clk 0:00:17.1]}
19... Bxf3 {[%clk 0:00:13.3]} 20. gxf3 {[%clk 0:00:17.4]} 20... Nxf3+ {[%clk
0:00:14.2]} 21. Kd1 {[%clk 0:00:13.7]} 21... e5 {[%clk 0:00:13.1]} 22. a6 {[%clk
0:00:09.3]} 22... Ke7 {[%clk 0:00:03.6]} 23. a7 {[%clk 0:00:07]} 23... Ne6
{[%clk 0:00:04]} 24. a8=Q {[%clk 0:00:05.2]} 24... Nxc7 {[%clk 0:00:01.5]} 25.
Qxd8+ {[%clk 0:00:04.7]} 1-0

[Event "*** Titled Tuesday Blitz"]
[Site "Chess.com"]
[Date "2020.11.24"]
[Round "7"]
[White "Sviridov_Valery"]
[Black "Gusarov91"]
[Result "1-0"]
[WhiteElo "2829"]
[BlackElo "2668"]
[TimeControl "180+1"]
[EndTime "11:34:38 PST"]
[Termination "Sviridov_Valery won by resignation"]

1. Nf3 {[%clk 0:03:00.9]} 1... c6 {[%clk 0:03:00]} 2. g3 {[%clk 0:03:00.8]} 2...
d5 {[%clk 0:03:00.3]} 3. Bg2 {[%clk 0:03:01.3]} 3... Nf6 {[%clk 0:03:01]} 4. O-O
{[%clk 0:03:01.4]} 4... Bg4 {[%clk 0:03:01.6]} 5. d4 {[%clk 0:03:01.3]} 5...
Nbd7 {[%clk 0:03:01.2]} 6. Nbd2 {[%clk 0:03:01.8]} 6... e6 {[%clk 0:03:00.7]} 7.
Re1 {[%clk 0:03:00.9]} 7... Be7 {[%clk 0:02:59]} 8. e4 {[%clk 0:03:00.1]} 8...
dxe4 {[%clk 0:02:59.3]} 9. Nxe4 {[%clk 0:03:01]} 9... Nxe4 {[%clk 0:03:00]} 10.
Rxe4 {[%clk 0:03:01.5]} 10... Nf6 {[%clk 0:03:00.9]} 11. Re1 {[%clk 0:03:01.2]}
11... O-O {[%clk 0:03:00.8]} 12. c3 {[%clk 0:03:01.7]} 12... Qb6 {[%clk
0:02:55.9]} 13. Qb3 {[%clk 0:03:01.3]} 13... Qxb3 {[%clk 0:02:50.3]} 14. axb3
{[%clk 0:03:02.2]} 14... Rfe8 {[%clk 0:02:48.8]} 15. Ne5 {[%clk 0:03:00.6]}
15... Bf5 {[%clk 0:02:46.8]} 16. Nc4 {[%clk 0:02:57.7]} 16... a6 {[%clk
0:02:38.6]} 17. Na5 {[%clk 0:02:57.1]} 17... Ra7 {[%clk 0:02:32.7]} 18. Bg5
{[%clk 0:02:24.8]} 18... Bd8 {[%clk 0:02:28]} 19. Nxb7 {[%clk 0:02:21.3]} 19...
Rxb7 {[%clk 0:02:25.2]} 20. Bxc6 {[%clk 0:02:21.8]} 20... Ree7 {[%clk
0:02:14.8]} 21. Bxb7 {[%clk 0:02:21.4]} 21... Rxb7 {[%clk 0:02:14.9]} 22. Rxa6
{[%clk 0:02:22]} 22... Rb8 {[%clk 0:02:11.7]} 23. Bf4 {[%clk 0:02:18.9]} 23...
Rc8 {[%clk 0:02:06.2]} 24. f3 {[%clk 0:02:19.2]} 24... h5 {[%clk 0:02:05.4]} 25.
Rea1 {[%clk 0:02:15.9]} 25... Kh7 {[%clk 0:01:28.2]} 26. Ra8 {[%clk 0:02:14.9]}
26... Rxa8 {[%clk 0:01:27.7]} 27. Rxa8 {[%clk 0:02:15.8]} 27... Be7 {[%clk
0:01:28.2]} 28. Ra7 {[%clk 0:02:15.1]} 28... Nd5 {[%clk 0:01:27.4]} 29. Bd2
{[%clk 0:01:52.8]} 29... Bf6 {[%clk 0:01:24.5]} 30. Kf2 {[%clk 0:01:49.8]} 30...
Kg6 {[%clk 0:01:22.6]} 31. Ke2 {[%clk 0:01:44.1]} 31... e5 {[%clk 0:01:19.1]}
32. dxe5 {[%clk 0:01:43.3]} 32... Bxe5 {[%clk 0:01:19.5]} 33. Ra5 {[%clk
0:01:41.6]} 33... Be6 {[%clk 0:01:14.5]} 34. c4 {[%clk 0:01:41.3]} 34... Bc7
{[%clk 0:01:13.5]} 35. Rxd5 {[%clk 0:01:35.6]} 35... Bxd5 {[%clk 0:01:13.5]} 36.
cxd5 {[%clk 0:01:36.5]} 36... Kf5 {[%clk 0:01:14]} 37. Kd3 {[%clk 0:01:31.7]}
37... h4 {[%clk 0:01:12.3]} 38. g4+ {[%clk 0:01:25]} 38... Ke5 {[%clk
0:01:12.4]} 39. h3 {[%clk 0:01:25.5]} 39... Kxd5 {[%clk 0:01:12.6]} 40. Bc3
{[%clk 0:01:24.5]} 40... g6 {[%clk 0:01:10.9]} 41. Bf6 {[%clk 0:01:23.8]} 41...
Bg3 {[%clk 0:01:11.1]} 42. b4 {[%clk 0:01:24.3]} 42... Be1 {[%clk 0:01:10.5]}
43. Bc3 {[%clk 0:01:19.8]} 43... Bf2 {[%clk 0:01:10.4]} 44. Ke2 {[%clk
0:01:18.6]} 44... Bg3 {[%clk 0:01:08.3]} 45. Be1 {[%clk 0:01:17]} 45... Be5
{[%clk 0:01:00.6]} 46. Bxh4 {[%clk 0:01:16.3]} 46... Bxb2 {[%clk 0:01:00.6]} 47.
Bf2 {[%clk 0:01:16.2]} 47... Kc4 {[%clk 0:01:00.2]} 48. Bc5 {[%clk 0:01:16.1]}
48... Bc1 {[%clk 0:00:56.3]} 49. h4 {[%clk 0:01:13.2]} 49... Bh6 {[%clk
0:00:56.2]} 50. h5 {[%clk 0:01:13]} 50... gxh5 {[%clk 0:00:56.1]} 51. gxh5
{[%clk 0:01:13.9]} 51... f5 {[%clk 0:00:56.2]} 52. Be3 {[%clk 0:01:10.4]} 52...
Bf8 {[%clk 0:00:55.4]} 53. Bd2 {[%clk 0:01:09.3]} 53... Kd4 {[%clk 0:00:53.3]}
54. h6 {[%clk 0:01:08.4]} 54... Kc4 {[%clk 0:00:47.2]} 55. h7 {[%clk 0:01:08.2]}
55... Bg7 {[%clk 0:00:47.5]} 56. Kf2 {[%clk 0:01:08.7]} 56... Kd3 {[%clk
0:00:43.5]} 57. Be1 {[%clk 0:01:08.1]} 57... f4 {[%clk 0:00:42.6]} 58. Kg2
{[%clk 0:01:08]} 58... Kc4 {[%clk 0:00:42.7]} 59. Kh3 {[%clk 0:01:07.2]} 59...
Kd3 {[%clk 0:00:41.4]} 60. Kg4 {[%clk 0:01:07.4]} 60... Ke3 {[%clk 0:00:41.7]}
61. Bh4 {[%clk 0:01:07.2]} 61... Kd4 {[%clk 0:00:39.8]} 62. Kf5 {[%clk
0:01:05.6]} 62... Kc4 {[%clk 0:00:39.4]} 63. Kg6 {[%clk 0:01:06]} 1-0

[Event "*** Titled Tuesday Blitz"]
[Site "Chess.com"]
[Date "2020.11.24"]
[Round "7"]
[White "Training_Day"]
[Black "Dave_ChessMate"]
[Result "1-0"]
[WhiteElo "2358"]
[BlackElo "2450"]
[TimeControl "180+1"]
[EndTime "11:34:38 PST"]
[Termination "Training_Day won on time"]

1. e4 {[%clk 0:03:00.9]} 1... e5 {[%clk 0:02:59.4]} 2. Nf3 {[%clk 0:03:00.6]}
2... Nf6 {[%clk 0:02:59.7]} 3. Nc3 {[%clk 0:03:00.3]} 3... Nc6 {[%clk
0:02:59.9]} 4. Bb5 {[%clk 0:03:00.3]} 4... Nd4 {[%clk 0:02:59.4]} 5. O-O {[%clk
0:02:59]} 5... Nxb5 {[%clk 0:02:56.5]} 6. Nxb5 {[%clk 0:02:59.9]} 6... d6 {[%clk
0:02:56.8]} 7. d4 {[%clk 0:02:52.8]} 7... exd4 {[%clk 0:02:53.6]} 8. Nfxd4
{[%clk 0:02:49.6]} 8... Be7 {[%clk 0:02:50.6]} 9. Nc3 {[%clk 0:02:46.4]} 9...
O-O {[%clk 0:02:47.6]} 10. Qf3 {[%clk 0:02:45]} 10... b6 {[%clk 0:02:28.9]} 11.
Nf5 {[%clk 0:02:42.4]} 11... Bxf5 {[%clk 0:02:27.7]} 12. Qxf5 {[%clk 0:02:41.9]}
12... Qd7 {[%clk 0:02:27.2]} 13. Qf3 {[%clk 0:02:31.7]} 13... Ng4 {[%clk
0:02:12.7]} 14. Nd5 {[%clk 0:02:20]} 14... Ne5 {[%clk 0:02:04]} 15. Qc3 {[%clk
0:02:08.2]} 15... c6 {[%clk 0:01:55]} 16. Nxe7+ {[%clk 0:01:43.7]} 16... Qxe7
{[%clk 0:01:55.9]} 17. Re1 {[%clk 0:01:40.5]} 17... Rac8 {[%clk 0:01:45.2]} 18.
Bf4 {[%clk 0:01:39.3]} 18... Ng6 {[%clk 0:01:23.7]} 19. Bg3 {[%clk 0:01:39]}
19... Rfd8 {[%clk 0:01:24.3]} 20. h3 {[%clk 0:01:36.3]} 20... Qg5 {[%clk
0:01:20.4]} 21. Rad1 {[%clk 0:01:31.2]} 21... d5 {[%clk 0:01:12.6]} 22. exd5
{[%clk 0:01:29.6]} 22... cxd5 {[%clk 0:01:13.2]} 23. Qb3 {[%clk 0:01:02.9]}
23... d4 {[%clk 0:00:56.5]} 24. Re4 {[%clk 0:01:00.5]} 24... Qc5 {[%clk
0:00:50.8]} 25. Rd2 {[%clk 0:00:51.2]} 25... Re8 {[%clk 0:00:41.7]} 26. Rexd4
{[%clk 0:00:45.8]} 26... h6 {[%clk 0:00:31.1]} 27. c3 {[%clk 0:00:43.3]} 27...
Qf5 {[%clk 0:00:26]} 28. Rd1 {[%clk 0:00:40.8]} 28... Ne5 {[%clk 0:00:18.9]} 29.
Rd5 {[%clk 0:00:32.3]} 29... Qe4 {[%clk 0:00:08]} 30. Qb4 {[%clk 0:00:15.8]} 1-0

[Event "*** Titled Tuesday Blitz"]
[Site "Chess.com"]
[Date "2020.11.24"]
[Round "7"]
[White "Caisachess"]
[Black "HrvojeZagreb"]
[Result "0-1"]
[WhiteElo "2374"]
[BlackElo "2275"]
[TimeControl "180+1"]
[EndTime "11:34:39 PST"]
[Termination "HrvojeZagreb won by resignation"]

1. e4 {[%clk 0:03:00.9]} 1... e6 {[%clk 0:02:59.4]} 2. d4 {[%clk 0:02:57.9]}
2... d5 {[%clk 0:02:59.5]} 3. Bd3 {[%clk 0:02:58.3]} 3... dxe4 {[%clk
0:02:58.6]} 4. Bxe4 {[%clk 0:02:58.5]} 4... Nf6 {[%clk 0:02:58.7]} 5. Bf3 {[%clk
0:02:57.5]} 5... Nbd7 {[%clk 0:02:58.5]} 6. Ne2 {[%clk 0:02:56.6]} 6... Bd6
{[%clk 0:02:58.3]} 7. O-O {[%clk 0:02:56.1]} 7... e5 {[%clk 0:02:58.5]} 8. Re1
{[%clk 0:02:54]} 8... O-O {[%clk 0:02:55.7]} 9. Ng3 {[%clk 0:02:34.6]} 9... exd4
{[%clk 0:02:45.4]} 10. Qxd4 {[%clk 0:02:31.8]} 10... Re8 {[%clk 0:02:35.6]} 11.
Rxe8+ {[%clk 0:02:08.3]} 11... Qxe8 {[%clk 0:02:34]} 12. Be3 {[%clk 0:02:07.1]}
12... Be5 {[%clk 0:01:57.2]} 13. Qb4 {[%clk 0:01:58]} 13... a5 {[%clk 0:01:56]}
14. Qa3 {[%clk 0:01:57.5]} 14... Nb6 {[%clk 0:01:45.7]} 15. Nd2 {[%clk
0:01:49.2]} 15... Ng4 {[%clk 0:01:44.5]} 16. Bxb6 {[%clk 0:01:37.8]} 16... cxb6
{[%clk 0:01:42.8]} 17. Re1 {[%clk 0:01:36.5]} 17... f6 {[%clk 0:01:12.7]} 18.
Qb3+ {[%clk 0:01:13.8]} 18... Kh8 {[%clk 0:01:02.8]} 19. Qxb6 {[%clk 0:00:57.9]}
19... Ra6 {[%clk 0:00:50.3]} 20. Qb3 {[%clk 0:00:52.3]} 20... Nxh2 {[%clk
0:00:35.2]} 21. Bxb7 {[%clk 0:00:41.1]} 21... Bxb7 {[%clk 0:00:27.5]} 22. Qxb7
{[%clk 0:00:40]} 22... Re6 {[%clk 0:00:17.3]} 23. Nf5 {[%clk 0:00:29.5]} 23...
Qf8 {[%clk 0:00:11.2]} 24. Qd5 {[%clk 0:00:18.5]} 24... Re8 {[%clk 0:00:08.4]}
25. Re3 {[%clk 0:00:12.8]} 25... g6 {[%clk 0:00:08.2]} 26. Nd4 {[%clk
0:00:09.4]} 26... Ng4 {[%clk 0:00:07.8]} 27. Rd3 {[%clk 0:00:08]} 27... Bh2+
{[%clk 0:00:06.6]} 28. Kh1 {[%clk 0:00:07.1]} 28... Re1+ {[%clk 0:00:06.6]} 0-1